bitfinex/quotes_BTCUSD_20260126
["timestamp","ask_amount","ask_price","bid_price","bid_amount"]
[1769442421338,0.03,87452.0,87429.0,0.04576]
[1769442421565,0.03,87447.0,87424.0,0.05719207]
[1769442421773,0.03,87447.0,87425.0,0.01034803]
[1769442421973,0.04143667,87438.0,87420.0,0.1758]
[1769442422179,0.2287136,87446.0,87415.0,0.0005249]
[1769442422180,0.03,87428.0,87415.0,0.0005249]
[1769442422335,0.03,87421.0,87415.0,0.0005249]
[1769442422540,0.03,87417.0,87415.0,0.0005249]
[1769442422741,0.03,87417.0,87393.0,0.17576]
[1769442422943,0.03,87400.0,87376.0,0.0002]
[1769442423142,0.03,87400.0,87378.0,0.04576]
[1769442423379,0.01235783,87412.0,87379.0,0.01144439]
[1769442423380,0.03,87396.0,87379.0,0.01144439]
[1769442423613,0.01235783,87412.0,87396.0,0.00052799]
[1769442423759,0.01144151,87401.0,87396.0,0.00052799]
[1769442424122,0.01144151,87401.0,87376.0,0.0002]
[1769442424123,0.03,87398.0,87376.0,0.0002]
[1769442424333,0.03,87396.0,87376.0,0.0002]
[1769442424466,0.03,87394.0,87384.0,0.0001098]
[1769442425564,0.03,87386.0,87376.0,0.0002]
[1769442425771,0.03,87386.0,87355.0,0.02341045]
[1769442425772,0.03,87383.0,87355.0,0.02341045]
[1769442425973,0.66737854,87398.0,87355.0,0.02341045]
[1769442425974,0.03,87380.0,87355.0,0.02341045]
[1769442426179,0.0458,87399.0,87380.0,0.00052799]
[1769442426376,0.0114423,87395.0,87380.0,0.00052799]
[1769442426609,0.02418736,87401.0,87363.0,0.67136402]
[1769442426821,0.01144308,87389.0,87356.0,0.06868437]
[1769442426986,0.03,87384.0,87355.0,0.02341045]
[1769442427212,0.03,87379.0,87357.0,0.01144727]
[1769442427411,0.03,87379.0,87366.0,0.0114461]
[1769442427587,0.03,87379.0,87360.0,0.48193035]
[1769442427793,0.03,87379.0,87363.0,0.01144649]
[1769442427975,0.02418736,87407.0,87366.0,0.0114461]
[1769442428177,0.03,87395.0,87371.0,0.01144544]
[1769442428377,0.03,87395.0,87373.0,0.01144518]
[1769442428660,0.03,87391.0,87369.0,0.1758]
[1769442428838,0.03,87389.0,87350.0,0.02341045]
[1769442428980,0.03,87387.0,87360.0,0.48193035]
[1769442429181,0.03,87380.0,87362.0,0.11225058]
[1769442429389,0.03,87372.0,87362.0,0.0006478]
[1769442429585,0.01144164,87400.0,87368.0,0.01144583]
[1769442429965,0.01859834,87401.0,87367.0,0.01144596]
[1769442429966,0.01144177,87399.0,87367.0,0.01144596]
[1769442430099,0.0114423,87395.0,87365.0,0.02341045]
[1769442430300,0.06998736,87403.0,87362.0,0.01209442]
[1769442430301,0.01144361,87385.0,87362.0,0.0006478]
[1769442430508,0.03,87382.0,87362.0,0.0006478]
[1769442431446,0.01144204,87397.0,87365.0,0.67136402]
[1769442431600,0.03,87395.0,87371.0,0.67136402]
[1769442431831,0.01143981,87414.0,87382.0,0.011444]
[1769442432023,0.05723955,87416.0,87380.0,1.17670482]
[1769442432024,0.0114402,87411.0,87380.0,1.17670482]
[1769442432223,0.01144007,87412.0,87381.0,0.12304691]
[1769442432458,0.01143942,87417.0,87389.0,0.67136402]
[1769442432836,0.03,87407.0,87383.0,0.01144387]
[1769442433023,0.03,87407.0,87382.0,0.011444]
[1769442433024,0.03,87407.0,87384.0,0.17584]
[1769442433254,0.01143719,87434.0,87399.0,1e-08]
[1769442433464,0.02418736,87435.0,87406.0,0.01144086]
[1769442433640,3.23e-06,87406.0,87405.0,0.72856898]
[1769442433779,3.23e-06,87406.0,87405.0,0.75197943]
[1769442434196,3.23e-06,87406.0,87405.0,0.67136402]
[1769442434399,3.23e-06,87406.0,87399.0,0.17584001]
[1769442435384,3.23e-06,87406.0,87399.0,1e-08]
[1769442435589,3.23e-06,87406.0,87382.0,0.0458]
[1769442435590,0.03,87398.0,87382.0,0.0458]
[1769442435759,0.03,87398.0,87386.0,0.17584]
[1769442436532,0.03,87397.0,87386.0,0.17584]
[1769442436734,3.23e-06,87406.0,87383.0,0.01144387]
[1769442436945,3.23e-06,87406.0,87387.0,0.01144334]
[1769442437195,3.23e-06,87406.0,87385.0,0.01144361]
[1769442437325,3.23e-06,87406.0,87386.0,0.01144348]
[1769442437529,3.23e-06,87406.0,87384.0,0.84720402]
[1769442437770,3.23e-06,87406.0,87384.0,0.85864776]
[1769442438122,0.03000323,87406.0,87384.0,0.84720402]
[1769442438290,0.03,87404.0,87384.0,0.84720402]
[1769442438502,0.03,87404.0,87387.0,0.01144334]
[1769442438701,0.03,87404.0,87388.0,0.01144321]
[1769442438902,0.03,87404.0,87385.0,0.17584]
[1769442439083,0.03,87404.0,87373.0,0.01144518]
[1769442439084,0.03,87404.0,87386.0,0.17584]
[1769442439287,0.03,87403.0,87388.0,0.01144321]
[1769442439532,0.03,87403.0,87387.0,0.0798421]
[1769442439533,0.03,87403.0,87387.0,0.02262537]
[1769442440097,0.03,87403.0,87384.0,0.0572183]
[1769442440292,0.06998736,87424.0,87370.0,0.48193035]
[1769442440293,0.03,87402.0,87381.0,0.02262537]
[1769442440498,0.01144217,87396.0,87370.0,0.02262537]
[1769442440705,0.03,87392.0,87370.0,0.02262537]
[1769442441118,0.03,87392.0,87374.0,0.01144505]
[1769442441370,0.03,87392.0,87380.0,0.031666]
[1769442441576,0.03,87391.0,87380.0,0.031666]
[1769442442154,0.0114402,87411.0,87381.0,0.01144413]
[1769442442337,0.09562903,87410.0,87380.0,0.031666]
[1769442442537,0.01144073,87407.0,87380.0,0.031666]
[1769442442738,0.03,87407.0,87382.0,0.011444]
[1769442442926,0.03,87407.0,87387.0,0.01144334]
[1769442443128,0.03,87407.0,87386.0,0.031666]
[1769442443337,0.03,87407.0,87386.0,0.04310948]
[1769442443577,0.01144099,87405.0,87386.0,0.06386031]
[1769442443890,0.0458,87424.0,87386.0,0.06386031]
[1769442443891,0.03,87404.0,87386.0,0.031666]
[1769442444536,0.17584,87428.0,87384.0,0.17584]
[1769442444537,0.01143902,87420.0,87385.0,0.01144361]
[1769442444741,0.03,87421.0,87400.0,0.01144164]
[1769442445162,0.03,87399.0,87379.0,0.22100136]
[1769442445386,0.03,87399.0,87380.0,0.01144426]
[1769442445559,0.01143837,87425.0,87389.0,0.04516136]
[1769442445766,0.01143968,87415.0,87389.0,0.04516136]
[1769442445970,0.00675359,87427.0,87390.0,0.65197336]
[1769442445971,0.01143929,87418.0,87390.0,0.65197336]
[1769442446277,0.05723902,87420.0,87384.0,0.01144374]
[1769442446278,0.03,87412.0,87392.0,0.04516136]
[1769442446851,0.03,87412.0,87394.0,0.05721159]
[1769442447053,0.03,87412.0,87394.0,0.04516136]
[1769442447309,0.01143811,87427.0,87389.0,0.17584]
[1769442447310,0.0114368,87437.0,87405.0,0.01144099]
[1769442447507,0.02480933,87439.0,87409.0,0.01144046]
[1769442447821,0.02480933,87439.0,87410.0,0.01144033]
[1769442447822,0.0360104,87438.0,87410.0,0.01144033]
[1769442447951,0.022164,87441.0,87413.0,0.01143994]
[1769442448171,0.01143484,87452.0,87420.0,0.01143902]
[1769442448542,0.03,87448.0,87421.0,0.05415783]
[1769442448676,0.03,87446.0,87421.0,0.05415783]
[1769442449386,0.04143628,87441.0,87421.0,0.05415783]
[1769442449597,0.03,87439.0,87421.0,0.05415783]
[1769442449954,0.03,87439.0,87416.0,0.17584]
[1769442449955,0.03,87433.0,87416.0,0.17584]
[1769442450127,0.03,87433.0,87410.0,0.17584]
[1769442450273,0.01143785,87429.0,87407.0,0.03988384]
[1769442450473,0.03,87425.0,87407.0,0.03988384]
[1769442450715,0.03,87423.0,87390.0,0.01144295]
[1769442450918,0.03,87415.0,87392.0,0.03988384]
[1769442451131,0.03,87415.0,87391.0,0.0458]
[1769442451132,0.03,87412.0,87393.0,0.01144256]
[1769442451355,0.03,87412.0,87391.0,0.0458]
[1769442451356,0.03,87412.0,87394.0,0.01144243]
[1769442451499,0.01143785,87429.0,87399.0,0.03313689]
[1769442451500,0.01143811,87427.0,87399.0,0.03313689]
[1769442451694,0.01143863,87423.0,87399.0,0.03313689]
[1769442451927,0.0114385,87424.0,87396.0,0.03313689]
[1769442452106,0.03,87420.0,87396.0,0.03313689]
[1769442452316,0.03,87418.0,87396.0,0.03313689]
[1769442452768,0.03,87418.0,87399.0,0.01144177]
[1769442452988,0.03,87418.0,87405.0,0.01144099]
[1769442453214,0.03,87418.0,87405.0,0.66341435]
[1769442453413,0.01379556,87438.0,87407.0,0.01144073]
[1769442453414,0.03,87417.0,87407.0,0.01144073]
[1769442453723,0.03,87417.0,87409.0,0.03347068]
[1769442453918,0.03,87417.0,87410.0,0.04491101]
[1769442454085,0.03,87417.0,87410.0,0.03347068]
[1769442454280,0.03,87437.0,87411.0,0.03347068]
[1769442454487,0.03,87435.0,87411.0,0.03347068]
[1769442454670,0.03,87435.0,87411.0,0.04491088]
[1769442454871,0.03,87435.0,87414.0,0.03347068]
[1769442455079,0.03,87433.0,87414.0,0.03347068]
[1769442455719,0.03,87433.0,87419.0,0.03269671]
[1769442456120,0.03,87433.0,87419.0,0.01143916]
[1769442456288,0.01143523,87449.0,87421.0,0.03269671]
[1769442456491,0.01143562,87446.0,87421.0,0.03269671]
[1769442456693,0.0114351,87450.0,87421.0,0.03269671]
[1769442456694,0.08918094,87469.0,87421.0,0.03269671]
[1769442456947,0.08918094,87469.0,87412.0,0.04108041]
[1769442456948,0.01143366,87461.0,87429.0,0.02582431]
[1769442457095,0.0114334,87463.0,87429.0,0.02582431]
[1769442457096,0.00610717,87457.0,87429.0,0.02582431]
[1769442457304,0.03,87457.0,87431.0,0.02262537]
[1769442457514,0.03,87457.0,87432.0,0.09694789]
[1769442457713,0.03,87457.0,87433.0,0.01143732]
[1769442457948,0.03,87452.0,87432.0,0.09694789]
[1769442458162,0.03,87452.0,87432.0,0.02262537]
[1769442458917,0.00610717,87459.0,87432.0,0.02262537]
[1769442458918,0.03,87451.0,87432.0,0.02262537]
[1769442459125,0.03,87448.0,87429.0,0.17584]
[1769442460087,0.03,87448.0,87423.0,0.02262537]
[1769442460088,0.03,87448.0,87426.0,0.17584]
[1769442460278,0.03,87449.0,87426.0,0.17584]
[1769442460436,0.03,87440.0,87418.0,0.17584]
[1769442460637,0.03,87440.0,87421.0,0.05719412]
[1769442460837,0.03,87440.0,87422.0,0.01143876]
[1769442461174,0.03,87440.0,87423.0,0.01143863]
[1769442461398,0.03,87439.0,87423.0,0.01143863]
[1769442461596,0.03,87439.0,87427.0,0.01143811]
[1769442461876,0.03,87439.0,87429.0,0.01143785]
[1769442462265,0.0233213,87458.0,87430.0,0.66341108]
[1769442462471,0.03,87457.0,87434.0,0.01143719]
[1769442462671,0.03,87457.0,87439.0,0.01143654]
[1769442462837,0.03,87457.0,87439.0,0.03406191]
[1769442463037,0.03,87457.0,87440.0,0.02262537]
[1769442463458,0.03,87456.0,87440.0,0.02262537]
[1769442464303,0.03,87456.0,87442.0,0.01143615]
[1769442464523,0.0233213,87478.0,87447.0,0.01143549]
[1769442464524,0.03,87477.0,87447.0,0.01143549]
[1769442464707,0.03,87477.0,87457.0,0.01143419]
[1769442464909,0.03,87477.0,87459.0,0.02262537]
[1769442465110,0.0114287,87499.0,87466.0,0.01143301]
[1769442465318,0.05714734,87494.0,87462.0,0.05716742]
[1769442465520,0.05714734,87494.0,87460.0,0.65197336]
[1769442465521,0.03,87488.0,87460.0,0.65197336]
[1769442465720,0.03,87488.0,87461.0,0.01143366]
[1769442465870,0.04143013,87488.0,87461.0,0.65197336]
[1769442466072,0.03,87486.0,87461.0,0.65197336]
[1769442466332,0.03,87486.0,87463.0,0.0114334]
[1769442466624,0.03,87486.0,87465.0,0.01143314]
[1769442467122,0.03,87494.0,87467.0,0.01143288]
[1769442467323,0.03,87494.0,87468.0,0.01143275]
[1769442467528,0.03,87494.0,87462.0,0.88064294]
[1769442467529,0.03,87494.0,87471.0,0.01143236]
[1769442467744,0.0464478,87498.0,87471.0,0.01143236]
[1769442467745,0.0464478,87498.0,87477.0,0.01143157]
[1769442467950,0.0464478,87498.0,87474.0,0.01143196]
[1769442468076,0.0464478,87498.0,87475.0,0.01143183]
[1769442468285,0.0464478,87498.0,87481.0,0.01143105]
[1769442468286,0.0006478,87498.0,87481.0,0.01143105]
[1769442468496,0.01142752,87508.0,87479.0,0.65197336]
[1769442468746,0.01142674,87514.0,87481.0,0.05715511]
[1769442468988,0.011427,87512.0,87483.0,0.01143079]
[1769442469162,0.011427,87512.0,87484.0,0.64113341]
[1769442469333,0.06856126,87513.0,87484.0,0.64113341]
[1769442469639,0.02251822,87518.0,87489.0,0.01143]
[1769442469836,0.02251822,87518.0,87492.0,0.01142961]
[1769442470050,0.02251822,87518.0,87490.0,0.17576]
[1769442470051,0.02251822,87539.0,87504.0,0.64113341]
[1769442470215,0.01142334,87540.0,87510.0,0.01142726]
[1769442470409,0.02251822,87541.0,87513.0,0.01142687]
[1769442470670,0.02251822,87541.0,87509.0,0.17576]
[1769442470671,0.02251822,87541.0,87510.0,0.64113341]
[1769442470921,0.01142452,87531.0,87511.0,0.08740813]
[1769442471098,0.01142452,87531.0,87497.0,0.01142896]
[1769442471099,0.00999999,87511.0,87487.0,0.64113341]
[1769442471291,0.00999999,87511.0,87486.0,0.0571904]
[1769442471292,0.00999999,87511.0,87490.0,0.17576]
[1769442471516,0.00999999,87511.0,87490.0,0.81689341]
[1769442471641,0.00999999,87511.0,87490.0,0.91116015]
[1769442471842,0.00999999,87511.0,87481.0,0.06212416]
[1769442471843,0.06856751,87505.0,87487.0,0.17576]
[1769442472090,0.00999999,87511.0,87483.0,0.01143079]
[1769442472295,0.50516619,87520.0,87476.0,0.06181974]
[1769442472296,0.02251822,87538.0,87511.0,0.01142713]
[1769442472453,0.02251822,87538.0,87515.0,0.01142661]
[1769442472844,0.02251822,87538.0,87513.0,0.01142687]
[1769442472845,0.02251822,87538.0,87514.0,0.01142674]
[1769442473042,0.02251822,87538.0,87510.0,0.01142726]
[1769442473043,0.0004,87545.0,87510.0,0.48264797]
[1769442473283,0.0004,87545.0,87509.0,0.20066758]
[1769442473284,0.0004,87545.0,87511.0,0.64113341]
[1769442473493,0.01142361,87538.0,87511.0,0.64113341]
[1769442473646,0.22845998,87543.0,87511.0,0.64113341]
[1769442473647,0.11661682,87543.0,87511.0,0.64113341]
[1769442473847,0.01142387,87536.0,87509.0,0.17576]
[1769442474322,0.01142452,87531.0,87510.0,0.17572]
[1769442474474,0.03019411,87539.0,87511.0,0.022148]
[1769442474802,0.03019411,87539.0,87513.0,0.01142687]
[1769442474947,0.03019411,87539.0,87511.0,0.022148]
[1769442475344,0.03019411,87539.0,87513.0,0.05713395]
[1769442475602,0.03019411,87539.0,87511.0,0.022148]
[1769442475776,0.03019411,87539.0,87513.0,0.01142687]
[1769442475978,0.02251822,87540.0,87513.0,0.01142687]
[1769442476158,0.02251822,87540.0,87515.0,0.01142661]
[1769442476358,0.02251822,87540.0,87517.0,0.01142635]
[1769442476586,0.02251822,87540.0,87518.0,0.01142622]
[1769442476885,0.0004,87545.0,87519.0,0.01142609]
[1769442477059,0.0004,87545.0,87521.0,0.0363334]
[1769442477296,0.0004,87545.0,87521.0,0.02490758]
[1769442478112,0.03,87544.0,87521.0,0.02490758]
[1769442478857,0.03,87542.0,87521.0,0.02490758]
[1769442479077,0.03,87542.0,87522.0,0.06728264]
[1769442479666,0.03,87542.0,87523.0,0.22144]
[1769442479836,0.03,87541.0,87523.0,0.22144]
[1769442480240,0.0004,87545.0,87523.0,0.23286556]
[1769442480453,0.0004,87545.0,87523.0,0.22144]
[1769442480695,0.0004,87545.0,87521.0,0.02490758]
[1769442480696,0.01142321,87541.0,87521.0,0.02490758]
[1769442480851,0.01142321,87541.0,87506.0,0.01142778]
[1769442480852,0.04142569,87522.0,87493.0,0.02490758]
[1769442481050,0.02251822,87533.0,87505.0,0.01142791]
[1769442481051,0.03,87520.0,87505.0,0.01142791]
[1769442481257,0.03,87520.0,87504.0,0.01142804]
[1769442481460,0.03,87520.0,87505.0,0.01142791]
[1769442481645,0.03,87520.0,87510.0,0.01142726]
[1769442481850,0.04616,87545.0,87520.0,0.01]
[1769442482044,0.0004,87545.0,87520.0,0.01]
[1769442483239,0.03664757,87543.0,87520.0,0.01]
[1769442483420,0.00664757,87538.0,87507.0,0.02490758]
[1769442483594,0.00664757,87538.0,87488.0,0.01143013]
[1769442483595,0.03,87529.0,87497.0,0.02490758]
[1769442483802,0.03664757,87527.0,87497.0,0.02490758]
[1769442484148,0.0004,87545.0,87489.0,0.24421978]
[1769442484149,0.03664757,87517.0,87489.0,0.17564]
[1769442484272,0.03,87512.0,87487.0,0.04576]
[1769442484865,0.04142726,87510.0,87487.0,0.04576]
[1769442485017,0.03,87510.0,87487.0,0.04576]
[1769442485218,0.03,87510.0,87487.0,0.07091101]
[1769442485437,0.03,87510.0,87488.0,0.01143013]
[1769442485812,0.03394457,87517.0,87487.0,0.11663185]
[1769442485813,0.03,87509.0,87487.0,0.11663185]
[1769442485994,0.03,87509.0,87491.0,0.01142974]
[1769442486394,0.03,87509.0,87492.0,0.01142961]
[1769442486601,0.02916579,87528.0,87496.0,0.01142909]
[1769442486804,0.04576,87531.0,87503.0,0.64113341]
[1769442487049,0.03,87530.0,87503.0,0.64113341]
[1769442487250,0.03,87530.0,87504.0,0.06856787]
[1769442487457,0.03,87521.0,87494.0,0.02490758]
[1769442487624,0.03,87517.0,87488.0,0.04108041]
[1769442487793,0.03,87517.0,87497.0,0.017564]
[1769442488679,0.03,87522.0,87496.0,0.17564]
[1769442489698,0.03,87521.0,87508.0,0.01142752]
[1769442489923,0.0004,87545.0,87521.0,0.01]
[1769442490137,0.0004,87545.0,87522.0,0.06855398]
[1769442490308,0.0004,87545.0,87521.0,0.01]
[1769442490817,0.03,87541.0,87521.0,0.01]
[1769442491159,0.03,87541.0,87527.0,0.01142504]
[1769442491456,0.03,87541.0,87524.0,0.057127]
[1769442491659,0.03,87541.0,87515.0,0.06855914]
[1769442491887,0.03,87541.0,87513.0,0.01142687]
[1769442491888,0.03,87540.0,87525.0,0.0114253]
[1769442492082,0.03,87540.0,87527.0,0.01142504]
[1769442492322,0.0004,87545.0,87540.0,0.01]
[1769442492528,0.0004,87545.0,87528.0,0.00914008]
[1769442492979,0.0004,87545.0,87522.0,0.03633327]
[1769442492980,0.0004,87545.0,87522.0,0.02490758]
[1769442493409,0.03,87540.0,87513.0,0.64113341]
[1769442493619,0.03,87540.0,87516.0,0.01142648]
[1769442493816,0.03,87540.0,87517.0,0.01142635]
[1769442494020,0.03,87540.0,87517.0,0.068558]
[1769442494248,0.03,87540.0,87519.0,0.01142609]
[1769442494443,0.03,87540.0,87518.0,0.06855704]
[1769442494444,0.03,87539.0,87518.0,0.01142622]
[1769442494778,0.03,87539.0,87500.0,0.64113341]
[1769442494994,0.03,87529.0,87502.0,0.01142831]
[1769442495186,0.03,87529.0,87504.0,0.01142804]
[1769442495390,0.03,87529.0,87503.0,0.10225294]
[1769442495847,0.03,87528.0,87509.0,0.01142739]
[1769442496081,0.03,87528.0,87511.0,0.01142713]
[1769442496256,0.03,87528.0,87517.0,0.05713163]
[1769442496455,0.03,87528.0,87517.0,0.01142635]
[1769442496769,0.03,87528.0,87511.0,0.01142713]
[1769442496976,0.03,87527.0,87511.0,0.03831473]
[1769442497937,0.03,87526.0,87512.0,0.011427]
[1769442498077,0.03,87526.0,87511.0,0.03831473]
[1769442498415,0.03,87526.0,87511.0,0.0268876]
[1769442498620,0.01142308,87542.0,87512.0,0.06856193]
[1769442498818,0.03425297,87542.0,87513.0,0.05196125]
[1769442499032,0.03,87541.0,87514.0,0.06856039]
[1769442499224,0.03,87541.0,87523.0,0.01142556]
[1769442499369,0.03,87541.0,87528.0,0.01142491]
[1769442499922,0.03,87540.0,87523.0,0.68857778]
[1769442500128,0.03,87540.0,87524.0,0.01716648]
[1769442500679,0.03,87540.0,87525.0,0.17564]
[1769442500873,0.03,87539.0,87525.0,0.17564]
[1769442501289,0.03,87539.0,87525.0,0.1756]
[1769442502025,0.03,87538.0,87525.0,0.1756]
[1769442503011,0.0004,87545.0,87525.0,0.2091573]
[1769442503689,0.0004,87545.0,87530.0,0.01142465]
[1769442503864,6.647e-05,87559.0,87530.0,0.06854761]
[1769442504014,0.04148734,87559.0,87530.0,0.01142465]
[1769442504210,0.03,87556.0,87529.0,0.01142478]
[1769442504447,0.03,87556.0,87531.0,0.02380988]
[1769442504825,0.03,87556.0,87533.0,0.68246815]
[1769442505058,0.03,87556.0,87534.0,0.05712037]
[1769442505275,0.03,87555.0,87533.0,0.68246815]
[1769442505933,0.03,87555.0,87533.0,0.69389241]
[1769442506154,0.03,87555.0,87534.0,0.05196125]
[1769442506357,0.03,87554.0,87534.0,0.05196125]
[1769442506932,0.03,87554.0,87532.0,0.02380988]
[1769442507341,0.03,87553.0,87533.0,0.1756]
[1769442508294,0.03,87553.0,87533.0,0.19940988]
[1769442508429,0.03,87552.0,87533.0,0.19940988]
[1769442508852,0.03,87552.0,87534.0,0.1756]
[1769442509289,0.03,87552.0,87534.0,0.24969325]
[1769442509495,0.03,87551.0,87535.0,0.1756]
[1769442509896,0.03,87551.0,87524.0,0.03523531]
[1769442510110,0.03,87551.0,87533.0,0.1756]
[1769442510499,0.00611501,87552.0,87533.0,0.1756]
[1769442511187,0.03,87554.0,87535.0,0.71238766]
[1769442511435,0.03,87554.0,87535.0,0.02380988]
[1769442511673,0.02282989,87566.0,87534.0,0.02441502]
[1769442511674,0.03,87553.0,87534.0,0.02441502]
[1769442512706,0.03,87552.0,87534.0,0.02441502]
[1769442513550,0.03,87551.0,87534.0,0.02441502]
[1769442513766,0.03,87551.0,87535.0,0.01615123]
[1769442514571,0.03,87555.0,87533.0,0.1756]
[1769442515715,0.03,87554.0,87535.0,0.02380988]
[1769442515913,0.06892346,87554.0,87535.0,0.02380988]
[1769442516117,0.06892346,87554.0,87533.0,0.1756]
[1769442516725,0.03,87569.0,87554.0,0.01]
[1769442516883,0.03,87567.0,87532.0,0.01142439]
[1769442517097,0.48106932,87570.0,87534.0,0.01142413]
[1769442517098,0.0062437,87564.0,87534.0,0.01142413]
[1769442517415,0.0062437,87564.0,87534.0,0.02380988]
[1769442517634,0.0062437,87548.0,87518.0,0.02380988]
[1769442517855,0.03,87541.0,87508.0,0.68857778]
[1769442518201,0.01142504,87527.0,87513.0,0.02380988]
[1769442518416,0.03,87526.0,87513.0,0.02380988]
[1769442519175,0.02031462,87538.0,87513.0,0.02380988]
[1769442519176,0.03,87525.0,87513.0,0.02380988]
[1769442519368,0.00664353,87521.0,87495.0,0.04572]
[1769442519568,0.00664353,87521.0,87496.0,0.18255299]
[1769442519813,0.03,87516.0,87496.0,0.18255299]
[1769442520427,0.03,87516.0,87497.0,0.71238766]
[1769442520628,0.03,87516.0,87498.0,0.02380988]
[1769442520766,0.03,87515.0,87498.0,0.02380988]
[1769442520952,0.03,87515.0,87497.0,0.71238766]
[1769442521590,0.03,87515.0,87498.0,0.03523871]
[1769442521795,0.03,87514.0,87501.0,0.01142844]
[1769442521996,0.01142347,87539.0,87514.0,0.01]
[1769442522176,0.01142439,87532.0,87511.0,0.02380988]
[1769442522372,0.01142374,87537.0,87512.0,0.02380988]
[1769442522561,0.48106932,87560.0,87517.0,0.68857778]
[1769442522768,0.33434341,87567.0,87517.0,0.71238766]
[1769442523044,0.33434341,87567.0,87515.0,0.04572]
[1769442523045,0.01142139,87555.0,87522.0,0.01142569]
[1769442523200,0.01142113,87557.0,87529.0,0.025]
[1769442523546,0.01142074,87560.0,87531.0,0.025]
[1769442523722,0.011421,87558.0,87531.0,0.025]
[1769442524029,0.22839812,87567.0,87530.0,0.1756]
[1769442524030,0.03,87557.0,87535.0,0.025]
[1769442524232,0.03,87557.0,87542.0,0.01142308]
[1769442524408,0.03,87557.0,87541.0,0.05711604]
[1769442524409,0.03,87557.0,87541.0,0.68857778]
[1769442524607,0.03,87557.0,87542.0,0.025]
[1769442524807,0.03,87568.0,87542.0,0.025]
[1769442525012,0.03,87568.0,87536.0,0.02477656]
[1769442525013,0.03,87568.0,87546.0,0.025]
[1769442525208,0.03,87568.0,87547.0,0.1756]
[1769442525735,0.03,87568.0,87548.0,0.02380988]
[1769442525938,0.03,87567.0,87549.0,0.68857778]
[1769442526290,0.01141891,87574.0,87553.0,0.02380988]
[1769442526676,0.01269388,87580.0,87553.0,0.02380988]
[1769442526895,0.00449828,87581.0,87553.0,0.02380988]
[1769442526896,0.03,87579.0,87553.0,0.02380988]
[1769442527069,0.03,87577.0,87553.0,0.02380988]
[1769442527275,0.04269388,87577.0,87553.0,0.02380988]
[1769442527466,0.04269388,87577.0,87553.0,0.04858644]
[1769442527692,0.03,87577.0,87553.0,0.04858644]
[1769442527899,0.04269388,87577.0,87553.0,0.04858644]
[1769442528196,0.04269388,87577.0,87543.0,0.70000073]
[1769442528197,0.03,87552.0,87534.0,0.1756]
[1769442528354,0.03,87552.0,87520.0,0.06216759]
[1769442528355,0.03,87549.0,87529.0,0.06952988]
[1769442528547,0.03,87532.0,87523.0,0.04572]
[1769442528742,0.03,87532.0,87502.0,0.01142831]
[1769442528743,0.03,87522.0,87496.0,0.02475884]
[1769442528942,0.03657445,87522.0,87500.0,0.05714242]
[1769442529186,0.03,87520.0,87497.0,0.18864]
[1769442529520,0.03,87520.0,87500.0,0.67969169]
[1769442529672,0.03,87520.0,87501.0,0.02475884]
[1769442529854,0.03,87520.0,87501.0,0.02667716]
[1769442530249,0.48106932,87530.0,87481.0,0.01143105]
[1769442530250,0.03,87519.0,87499.0,0.1756]
[1769442531063,0.03,87498.0,87476.0,0.02475884]
[1769442531491,0.48106932,87490.0,87467.0,0.04572]
[1769442531696,0.04143092,87482.0,87466.0,0.1756]
[1769442531884,0.03,87480.0,87466.0,0.1756]
[1769442532632,0.01142896,87497.0,87468.0,0.01143275]
[1769442532868,0.03,87497.0,87468.0,0.01143275]
[1769442533203,0.03,87495.0,87465.0,0.02475884]
[1769442533412,0.4945633,87500.0,87466.0,0.1756]
[1769442533413,0.00660899,87492.0,87466.0,0.1756]
[1769442533842,0.03,87484.0,87466.0,0.1756]
[1769442534059,0.03,87484.0,87465.0,0.02475884]
[1769442534911,0.03,87483.0,87465.0,0.03619198]
[1769442535116,0.03,87483.0,87466.0,0.02475884]
[1769442535324,0.001,87495.0,87471.0,0.02475884]
[1769442535558,0.01799197,87514.0,87481.0,0.02475884]
[1769442535768,0.00660899,87518.0,87482.0,0.27851459]
[1769442535898,0.00660899,87518.0,87484.0,0.02475884]
[1769442536102,0.00660899,87518.0,87482.0,0.22136]
[1769442536103,0.03,87511.0,87486.0,0.67969169]
[1769442536429,0.03,87511.0,87487.0,0.02475884]
[1769442536765,0.03,87511.0,87486.0,0.02475884]
[1769442536992,0.03,87511.0,87487.0,0.01143026]
[1769442537216,0.03,87510.0,87488.0,0.02475884]
[1769442537908,0.03,87510.0,87494.0,0.02475884]
[1769442538135,0.03,87509.0,87496.0,0.02475884]
[1769442538345,0.03,87509.0,87491.0,0.01142974]
[1769442538346,0.03,87495.0,87490.0,0.17564]
[1769442539156,0.03,87495.0,87484.0,0.17564]
[1769442539338,0.03,87494.0,87484.0,0.17564]
[1769442539922,0.01142687,87513.0,87485.0,0.02475884]
[1769442540104,0.01142687,87513.0,87484.0,0.17564]
[1769442540105,0.011427,87512.0,87486.0,0.08186764]
[1769442540327,0.011427,87512.0,87487.0,0.02475884]
[1769442540328,0.01142726,87510.0,87487.0,0.02475884]
[1769442540544,0.03,87511.0,87487.0,0.02475884]
[1769442540742,0.03,87511.0,87486.0,0.08186764]
[1769442540743,0.03,87511.0,87495.0,0.0571458]
[1769442540941,0.00718607,87535.0,87498.0,0.02475884]
[1769442541162,0.02248966,87536.0,87498.0,0.02475884]
[1769442541163,0.05826058,87534.0,87499.0,0.02475884]
[1769442541306,0.05712643,87526.0,87499.0,0.02475884]
[1769442541659,0.0414253,87525.0,87499.0,0.02475884]
[1769442541868,0.05826058,87534.0,87501.0,0.02475884]
[1769442541869,0.03,87523.0,87501.0,0.02475884]
[1769442542081,0.01142269,87545.0,87512.0,0.02475884]
[1769442542239,0.01142334,87540.0,87514.0,0.02475884]
[1769442542422,0.01142308,87542.0,87515.0,0.02475884]
[1769442542795,0.01142308,87542.0,87510.0,0.49249658]
[1769442542796,0.03,87557.0,87521.0,0.67969169]